[Event "Presidents Day GM"]
[Site "Santa Clara USA"]
[Date "2024.02.16"]
[Round "2.2"]
[White "Atanasov, Anthony"]
[Black "Jiang, Lucas"]
[Result "1-0"]
[ECO "D02"]
[WhiteElo "2384"]
[BlackElo "2258"]
[PlyCount "53"]
[EventDate "2024.02.13"]
[EventType "tourn"]
[EventRounds "9"]
[EventCountry "USA"]
[Source "ChessMix"]
[SourceDate "2024.02.20"]
[TimeControl "5400+30"]

1. d4 {[%emt 0:00:02]} d5 {[%emt 0:00:14]} 2. Nf3 {[%emt 0:00:06]} Nf6 {
[%emt 0:00:06]} 3. Bf4 {[%emt 0:00:08]} g6 {[%emt 0:00:07]} 4. e3 {
[%emt 0:00:06]} Bg7 {[%emt 0:00:05]} 5. Nbd2 {[%emt 0:00:07]} O-O {
[%emt 0:00:08]} 6. c3 {[%emt 0:00:12]} c5 {[%emt 0:02:18]} 7. Be2 {
[%emt 0:00:02]} Nc6 {[%emt 0:01:39]} 8. dxc5 {[%emt 0:00:40]} Re8 {
[%emt 0:16:33]} 9. O-O {[%emt 0:06:08]} e5 {[%emt 0:03:26]} 10. Bg3 {
[%emt 0:00:02]} a5 {[%emt 0:04:27]} 11. Bb5 {[%emt 0:07:56]} Nd7 {
[%emt 0:07:14]} 12. Bh4 {[%emt 0:02:05]} Qc7 {[%emt 0:03:48]} 13. e4 {
[%emt 0:00:46]} Na7 {[%emt 0:02:11]} 14. Ba4 {[%emt 0:03:06]} Qxc5 {
[%emt 0:03:16]} 15. exd5 {[%emt 0:10:32]} b5 {[%emt 0:06:49]} 16. Ne4 {
[%emt 0:09:59]} Qb6 {[%emt 0:01:04]} 17. Bc2 {[%emt 0:02:55]} Bb7 {
[%emt 0:01:42]} 18. Bg5 {[%emt 0:01:38]} Nc8 {[%emt 0:07:14]} 19. Be3 {
[%emt 0:03:10]} Qc7 {[%emt 0:05:19]} 20. a4 {[%emt 0:08:48]} Nd6 {
[%emt 0:05:17]} 21. Nxd6 {[%emt 0:13:13]} Qxd6 {[%emt 0:00:06]} 22. axb5 {
[%emt 0:00:04]} Nb6 {[%emt 0:02:59]} 23. Ng5 {[%emt 0:04:35]} Qd8 {
[%emt 0:05:26]} 24. Qf3 {[%emt 0:06:31]} f6 {[%emt 0:05:13]} 25. Bb3 {
[%emt 0:02:07]} a4 {[%emt 0:10:29]} 26. d6+ {[%emt 0:03:54]} axb3 {
[%emt 0:00:06]} 27. Qxb7 {[%emt 0:00:04]} 1-0

[Event "Presidents Day GM"]
[Site "Santa Clara USA"]
[Date "2024.02.17"]
[Round "4.1"]
[White "Sathish, Pranav"]
[Black "Atanasov, Anthony"]
[Result "0-1"]
[ECO "A06"]
[WhiteElo "2357"]
[BlackElo "2384"]
[PlyCount "50"]
[EventDate "2024.02.13"]
[EventType "tourn"]
[EventRounds "9"]
[EventCountry "USA"]
[Source "ChessMix"]
[SourceDate "2024.02.20"]
[TimeControl "5400+30"]

1. Nf3 {[%emt 0:00:01]} d5 {[%emt 0:00:17]} 2. b3 {[%emt 0:00:08]} Bf5 {
[%emt 0:00:36]} 3. Bb2 {[%emt 0:00:09]} e6 {[%emt 0:00:20]} 4. d3 {
[%emt 0:00:55]} Nf6 {[%emt 0:00:19]} 5. Nh4 {[%emt 0:01:03]} h5 {[%emt 0:00:32]
} 6. Nxf5 {[%emt 0:02:14]} exf5 {[%emt 0:00:02]} 7. e3 {[%emt 0:00:30]} c5 {
[%emt 0:02:23]} 8. Qf3 {[%emt 0:01:40]} g6 {[%emt 0:00:13]} 9. Nd2 {
[%emt 0:00:40]} Nc6 {[%emt 0:01:19]} 10. Be2 {[%emt 0:03:14]} Bd6 {
[%emt 0:03:37]} 11. d4 {[%emt 0:14:44]} Ne4 {[%emt 1:26:22]} 12. Bb5 {
[%emt 1:11:12]} Qa5 {[%emt 0:00:30]} 13. Qe2 {[%emt 0:00:30]} cxd4 {
[%emt 0:00:00]} 14. Bxc6+ {[%emt 0:00:00]} bxc6 {[%emt 0:00:00]} 15. Bxd4 {
[%emt 0:01:00]} O-O {[%emt 0:00:00]} 16. f3 {[%emt 0:00:00]} c5 {[%emt 0:02:00]
} 17. Bb2 {[%emt 0:01:00]} Nc3 {[%emt 0:00:00]} 18. Qd3 {[%emt 0:00:00]} Be5 {
[%emt 0:00:00]} 19. a3 {[%emt 0:00:00]} Rfe8 {[%emt 0:00:00]} 20. Kf1 {
[%emt 0:00:00]} Rab8 {[%emt 0:00:00]} 21. b4 {[%emt 0:00:00]} c4 {
[%emt 0:00:00]} 22. Nxc4 {[%emt 0:00:00]} dxc4 {[%emt 0:00:00]} 23. Qxc4 {
[%emt 0:00:00]} Qa4 {[%emt 0:00:00]} 24. Bxc3 {[%emt 0:00:00]} Qxc2 {
[%emt 0:00:00]} 25. Qe2 {[%emt 0:00:00]} Qxc3 {[%emt 0:00:00]} 0-1

[Event "Presidents Day GM"]
[Site "Santa Clara USA"]
[Date "2024.02.18"]
[Round "5.5"]
[White "Atanasov, Anthony"]
[Black "Atwell, Rose"]
[Result "1-0"]
[ECO "D02"]
[WhiteElo "2384"]
[BlackElo "2104"]
[PlyCount "55"]
[EventDate "2024.02.13"]
[EventType "tourn"]
[EventRounds "9"]
[EventCountry "USA"]
[Source "ChessMix"]
[SourceDate "2024.02.20"]
[TimeControl "5400+30"]

1. d4 {[%emt 0:00:03]} d5 {[%emt 0:00:04]} 2. Bf4 {[%emt 0:00:05]} Nf6 {
[%emt 0:00:05]} 3. e3 {[%emt 0:00:06]} e6 {[%emt 0:00:09]} 4. Nf3 {
[%emt 0:00:07]} Bd6 {[%emt 0:00:07]} 5. a3 {[%emt 0:00:04]} Bxf4 {
[%emt 0:01:03]} 6. exf4 {[%emt 0:00:07]} O-O {[%emt 0:03:45]} 7. Nbd2 {
[%emt 0:00:28]} b6 {[%emt 0:04:24]} 8. h4 {[%emt 0:00:35]} c5 {[%emt 0:03:19]}
9. h5 {[%emt 0:00:26]} h6 {[%emt 0:05:50]} 10. Ne5 {[%emt 0:00:28]} Ba6 {
[%emt 0:04:33]} 11. Bxa6 {[%emt 0:01:18]} Nxa6 {[%emt 0:00:03]} 12. Qe2 {
[%emt 0:03:26]} Qc8 {[%emt 0:10:57]} 13. g4 {[%emt 0:01:37]} Nh7 {
[%emt 0:05:16]} 14. Ndf3 {[%emt 0:03:28]} f6 {[%emt 0:11:26]} 15. Ng6 {
[%emt 0:00:44]} Rf7 {[%emt 0:03:12]} 16. g5 {[%emt 0:03:04]} cxd4 {
[%emt 0:04:26]} 17. gxh6 {[%emt 0:03:09]} Nc5 {[%emt 0:03:14]} 18. Nxd4 {
[%emt 0:02:07]} Qd7 {[%emt 0:06:08]} 19. hxg7 {[%emt 0:03:53]} Re8 {
[%emt 0:01:34]} 20. O-O-O {[%emt 0:00:17]} Ne4 {[%emt 0:04:48]} 21. f5 {
[%emt 0:08:02]} e5 {[%emt 0:03:37]} 22. Ne6 {[%emt 0:00:19]} Rxe6 {
[%emt 0:01:54]} 23. fxe6 {[%emt 0:00:08]} Qxe6 {[%emt 0:00:03]} 24. h6 {
[%emt 0:04:36]} f5 {[%emt 0:01:27]} 25. f3 {[%emt 0:01:06]} Qxg6 {
[%emt 0:03:50]} 26. fxe4 {[%emt 0:00:07]} Qg5+ {[%emt 0:00:17]} 27. Kb1 {
[%emt 0:00:29]} dxe4 {[%emt 0:00:14]} 28. Qc4 {[%emt 0:00:09]} 1-0

[Event "Presidents Day GM"]
[Site "Santa Clara USA"]
[Date "2024.02.18"]
[Round "6.2"]
[White "Wang, Isaac"]
[Black "Atanasov, Anthony"]
[Result "0-1"]
[ECO "E06"]
[WhiteElo "2316"]
[BlackElo "2384"]
[PlyCount "86"]
[EventDate "2024.02.13"]
[EventType "tourn"]
[EventRounds "9"]
[EventCountry "USA"]
[Source "ChessMix"]
[SourceDate "2024.02.20"]
[TimeControl "5400+30"]

1. d4 {[%emt 0:00:22]} Nf6 {[%emt 0:00:08]} 2. c4 {[%emt 0:00:10]} e6 {
[%emt 0:00:05]} 3. Nf3 {[%emt 0:00:12]} d5 {[%emt 0:00:07]} 4. Nc3 {
[%emt 0:00:07]} Be7 {[%emt 0:00:08]} 5. g3 {[%emt 0:00:11]} O-O {[%emt 0:00:08]
} 6. Bg2 {[%emt 0:00:05]} dxc4 {[%emt 0:00:07]} 7. Ne5 {[%emt 0:00:12]} Qd6 {
[%emt 0:00:08]} 8. O-O {[%emt 0:01:44]} Qa6 {[%emt 0:00:46]} 9. a4 {
[%emt 0:01:30]} Nc6 {[%emt 0:00:11]} 10. Nb5 {[%emt 0:03:19]} Nxe5 {
[%emt 0:00:11]} 11. dxe5 {[%emt 0:01:13]} Rd8 {[%emt 0:00:11]} 12. exf6 {
[%emt 0:02:09]} Rxd1 {[%emt 0:00:02]} 13. Rxd1 {[%emt 0:02:47]} Bd6 {
[%emt 0:00:02]} 14. Bf4 {[%emt 0:00:52]} gxf6 {[%emt 0:00:13]} 15. Bxd6 {
[%emt 0:05:08]} cxd6 {[%emt 0:00:02]} 16. Nc7 {[%emt 0:00:13]} Qb6 {
[%emt 0:00:18]} 17. Nxa8 {[%emt 0:00:09]} Qxb2 {[%emt 0:00:03]} 18. Rab1 {
[%emt 0:05:23]} Qe5 {[%emt 0:29:13]} 19. Nc7 {[%emt 0:19:37]} d5 {
[%emt 0:00:26]} 20. Nb5 {[%emt 0:04:08]} f5 {[%emt 0:01:20]} 21. e3 {
[%emt 0:02:30]} a6 {[%emt 0:12:33]} 22. Nd4 {[%emt 0:07:27]} Qc7 {
[%emt 0:02:25]} 23. Rdc1 {[%emt 0:03:12]} Qa5 {[%emt 0:12:30]} 24. Ra1 {
[%emt 0:03:24]} Bd7 {[%emt 0:02:44]} 25. Rcb1 {[%emt 0:08:02]} b6 {
[%emt 0:01:42]} 26. h4 {[%emt 0:04:10]} Kg7 {[%emt 0:11:16]} 27. Bf3 {
[%emt 0:04:27]} e5 {[%emt 0:01:29]} 28. Nc2 {[%emt 0:01:50]} f4 {[%emt 0:09:55]
} 29. exf4 {[%emt 0:02:09]} Bf5 {[%emt 0:02:05]} 30. Rc1 {[%emt 0:02:58]} d4 {
[%emt 0:05:08]} 31. Nxd4 {[%emt 0:11:53]} exd4 {[%emt 0:00:01]} 32. Rxc4 {
[%emt 0:00:08]} Be6 {[%emt 0:00:15]} 33. Rcc1 {[%emt 0:00:29]} d3 {
[%emt 0:04:03]} 34. Ra3 {[%emt 0:01:16]} d2 {[%emt 0:00:18]} 35. Rd1 {
[%emt 0:00:32]} Bc4 {[%emt 0:04:02]} 36. Kg2 {[%emt 0:02:13]} b5 {
[%emt 0:00:21]} 37. Re3 {[%emt 0:00:54]} bxa4 {[%emt 0:00:16]} 38. Ra1 {
[%emt 0:00:46]} Qb4 {[%emt 0:01:18]} 39. h5 {[%emt 0:01:10]} h6 {[%emt 0:00:56]
} 40. Kg1 {[%emt 0:00:28]} Qb2 {[%emt 0:01:02]} 41. Rxa4 {[%emt 0:00:38]} Qc1+
{[%emt 0:00:12]} 42. Kh2 {[%emt 0:00:15]} Bd5 {[%emt 0:00:33]} 43. Bxd5 {
[%emt 0:00:34]} d1=Q {[%emt 0:00:08]} 0-1

[Event "Presidents Day GM"]
[Site "Santa Clara USA"]
[Date "2024.02.19"]
[Round "7.4"]
[White "Atanasov, Anthony"]
[Black "Deng, Henry"]
[Result "1-0"]
[ECO "D14"]
[WhiteElo "2384"]
[BlackElo "2281"]
[PlyCount "119"]
[EventDate "2024.02.13"]
[EventType "tourn"]
[EventRounds "9"]
[EventCountry "USA"]
[Source "ChessMix"]
[SourceDate "2024.02.20"]
[TimeControl "5400+30"]

1. d4 {[%emt 0:00:02]} d5 {[%emt 0:00:49]} 2. Nf3 {[%emt 0:00:09]} Nf6 {
[%emt 0:00:14]} 3. a3 {[%emt 0:00:13]} Bf5 {[%emt 0:02:21]} 4. c4 {
[%emt 0:00:11]} c6 {[%emt 0:00:37]} 5. cxd5 {[%emt 0:01:49]} cxd5 {
[%emt 0:00:39]} 6. Qb3 {[%emt 0:00:12]} Qb6 {[%emt 0:02:13]} 7. Qxb6 {
[%emt 0:00:11]} axb6 {[%emt 0:00:03]} 8. Nc3 {[%emt 0:01:09]} Nc6 {
[%emt 0:01:24]} 9. Bf4 {[%emt 0:05:00]} e6 {[%emt 0:03:35]} 10. e3 {
[%emt 0:02:22]} Be7 {[%emt 0:01:45]} 11. Be2 {[%emt 0:07:39]} h6 {
[%emt 0:03:05]} 12. Rc1 {[%emt 0:03:07]} O-O {[%emt 0:01:56]} 13. Nb5 {
[%emt 0:03:11]} Rac8 {[%emt 0:06:01]} 14. Bc7 {[%emt 0:13:53]} Bd8 {
[%emt 0:12:27]} 15. Bd6 {[%emt 0:00:11]} Re8 {[%emt 0:01:25]} 16. Nd2 {
[%emt 0:00:35]} Be7 {[%emt 0:03:57]} 17. O-O {[%emt 0:00:41]} Nd7 {
[%emt 0:03:01]} 18. b4 {[%emt 0:14:12]} Bf6 {[%emt 0:03:13]} 19. Bg3 {
[%emt 0:03:28]} Be7 {[%emt 0:01:35]} 20. Rfd1 {[%emt 0:03:43]} Red8 {
[%emt 0:08:15]} 21. Bc7 {[%emt 0:00:02]} Re8 {[%emt 0:01:20]} 22. Bd6 {
[%emt 0:00:02]} Bf6 {[%emt 0:00:29]} 23. Bg3 {[%emt 0:00:02]} Be7 {
[%emt 0:01:13]} 24. Kf1 {[%emt 0:01:33]} f6 {[%emt 0:04:14]} 25. Nc7 {
[%emt 0:06:51]} Red8 {[%emt 0:01:54]} 26. f3 {[%emt 0:00:40]} Nf8 {
[%emt 0:02:40]} 27. b5 {[%emt 0:09:50]} Na5 {[%emt 0:02:54]} 28. Rc3 {
[%emt 0:00:52]} Kf7 {[%emt 0:05:02]} 29. Rdc1 {[%emt 0:00:46]} e5 {
[%emt 0:06:18]} 30. dxe5 {[%emt 0:01:37]} Bc5 {[%emt 0:02:14]} 31. exf6 {
[%emt 0:05:18]} d4 {[%emt 0:01:29]} 32. Rxc5 {[%emt 0:01:38]} bxc5 {
[%emt 0:00:33]} 33. e4 {[%emt 0:00:46]} d3 {[%emt 0:01:40]} 34. Bd1 {
[%emt 0:00:09]} Bd7 {[%emt 0:00:57]} 35. fxg7 {[%emt 0:00:16]} Kxg7 {
[%emt 0:01:52]} 36. Bh4 {[%emt 0:00:23]} b6 {[%emt 0:01:07]} 37. a4 {
[%emt 0:02:51]} Ne6 {[%emt 0:01:04]} 38. Bxd8 {[%emt 0:00:12]} Nxc7 {
[%emt 0:00:14]} 39. Be7 {[%emt 0:02:42]} Ne8 {[%emt 0:01:19]} 40. Kf2 {
[%emt 0:02:16]} Kf7 {[%emt 0:00:27]} 41. Bh4 {[%emt 0:00:01]} c4 {
[%emt 0:01:10]} 42. Rc3 {[%emt 0:02:05]} Be6 {[%emt 0:00:56]} 43. f4 {
[%emt 0:00:26]} Kf8 {[%emt 0:00:17]} 44. f5 {[%emt 0:00:16]} Bf7 {
[%emt 0:00:29]} 45. g4 {[%emt 0:01:48]} Rc5 {[%emt 0:00:45]} 46. Bd8 {
[%emt 0:01:31]} Nc7 {[%emt 0:00:16]} 47. Bf6 {[%emt 0:00:46]} Nxb5 {
[%emt 0:00:35]} 48. axb5 {[%emt 0:00:02]} Rxb5 {[%emt 0:00:01]} 49. e5 {
[%emt 0:00:38]} Rb2 {[%emt 0:00:20]} 50. Ke3 {[%emt 0:00:05]} Bd5 {
[%emt 0:00:20]} 51. e6 {[%emt 0:00:09]} Ra2 {[%emt 0:00:21]} 52. g5 {
[%emt 0:00:34]} hxg5 {[%emt 0:00:15]} 53. e7+ {[%emt 0:00:05]} Ke8 {
[%emt 0:00:03]} 54. Ne4 {[%emt 0:01:06]} Nb7 {[%emt 0:00:53]} 55. Bh5+ {
[%emt 0:00:10]} Bf7 {[%emt 0:00:05]} 56. Bxf7+ {[%emt 0:00:06]} Kxf7 {
[%emt 0:00:03]} 57. Rxc4 {[%emt 0:00:22]} b5 {[%emt 0:00:02]} 58. Rc8 {
[%emt 0:00:10]} Re2+ {[%emt 0:00:18]} 59. Kxd3 {[%emt 0:00:15]} Rxe4 {
[%emt 0:15:16]} 60. Rf8# {[%emt 0:00:08]} 1-0

[Event "Presidents Day GM"]
[Site "Santa Clara USA"]
[Date "2024.02.19"]
[Round "8.3"]
[White "Stearman, Josiah"]
[Black "Atanasov, Anthony"]
[Result "1/2-1/2"]
[ECO "C42"]
[WhiteElo "2455"]
[BlackElo "2384"]
[PlyCount "63"]
[EventDate "2024.02.13"]
[EventType "tourn"]
[EventRounds "9"]
[EventCountry "USA"]
[Source "ChessMix"]
[SourceDate "2024.02.20"]
[TimeControl "5400+30"]

1. e4 {[%emt 0:42:15]} e5 {[%emt 0:00:10]} 2. Nf3 {[%emt 0:00:08]} Nf6 {
[%emt 0:00:10]} 3. Nxe5 {[%emt 0:00:47]} d6 {[%emt 0:00:23]} 4. Nf3 {
[%emt 0:00:05]} Nxe4 {[%emt 0:00:10]} 5. Nc3 {[%emt 0:00:14]} Nxc3 {
[%emt 0:00:18]} 6. dxc3 {[%emt 0:00:05]} Be7 {[%emt 0:00:12]} 7. Be3 {
[%emt 0:00:29]} Nd7 {[%emt 0:00:12]} 8. Qd2 {[%emt 0:00:15]} Nf6 {
[%emt 0:00:16]} 9. Bd3 {[%emt 0:00:08]} O-O {[%emt 0:00:10]} 10. O-O-O {
[%emt 0:00:22]} d5 {[%emt 0:00:09]} 11. Rhe1 {[%emt 0:09:07]} Bg4 {
[%emt 0:00:23]} 12. Bg5 {[%emt 0:00:58]} Re8 {[%emt 0:06:09]} 13. Qf4 {
[%emt 0:02:05]} Qd6 {[%emt 0:04:34]} 14. Qa4 {[%emt 0:05:51]} Ne4 {
[%emt 0:07:37]} 15. Bxe4 {[%emt 0:04:47]} Bxg5+ {[%emt 0:02:48]} 16. Nxg5 {
[%emt 0:00:25]} Qf4+ {[%emt 0:17:46]} 17. Kb1 {[%emt 0:03:05]} dxe4 {
[%emt 0:10:39]} 18. Nxe4 {[%emt 0:00:09]} b5 {[%emt 0:01:33]} 19. Nf6+ {
[%emt 0:00:38]} Qxf6 {[%emt 0:00:04]} 20. Qxg4 {[%emt 0:00:14]} Rxe1 {
[%emt 0:02:02]} 21. Rxe1 {[%emt 0:00:08]} Qxf2 {[%emt 0:02:18]} 22. Qe4 {
[%emt 0:03:04]} Rf8 {[%emt 0:00:02]} 23. Rd1 {[%emt 0:00:17]} g6 {
[%emt 0:02:05]} 24. a3 {[%emt 0:04:11]} h5 {[%emt 0:01:27]} 25. h3 {
[%emt 0:00:11]} a5 {[%emt 0:07:32]} 26. Rd7 {[%emt 0:02:03]} c5 {[%emt 0:04:12]
} 27. Rd5 {[%emt 0:04:35]} Rb8 {[%emt 0:03:35]} 28. Qe5 {[%emt 0:04:35]} Rc8 {
[%emt 0:00:06]} 29. Qg5 {[%emt 0:03:47]} Kh7 {[%emt 0:07:37]} 30. Qd2 {
[%emt 0:03:44]} Qf1+ {[%emt 0:01:18]} 31. Ka2 {[%emt 0:00:10]} a4 {
[%emt 0:11:01]} 32. Qd3 {[%emt 0:01:48]} 1/2-1/2

[Event "Presidents Day GM"]
[Site "Santa Clara USA"]
[Date "2024.02.20"]
[Round "9.3"]
[White "Atanasov, Anthony"]
[Black "Budisavljevic, Luka"]
[Result "0-1"]
[ECO "A40"]
[WhiteElo "2384"]
[BlackElo "2475"]
[PlyCount "76"]
[EventDate "2024.02.13"]
[EventType "tourn"]
[EventRounds "9"]
[EventCountry "USA"]
[Source "ChessMix"]
[SourceDate "2024.02.20"]
[TimeControl "5400+30"]

1. d4 {[%emt 0:00:03]} e6 {[%emt 0:05:28]} 2. Bf4 {[%emt 0:00:41]} c5 {
[%emt 0:00:16]} 3. e3 {[%emt 0:00:11]} Qb6 {[%emt 0:00:06]} 4. Nc3 {
[%emt 0:00:16]} Nf6 {[%emt 0:00:11]} 5. a3 {[%emt 0:00:46]} d5 {[%emt 0:00:17]}
6. Nf3 {[%emt 0:04:30]} Bd7 {[%emt 0:00:10]} 7. Rb1 {[%emt 0:02:21]} Nc6 {
[%emt 0:03:29]} 8. Nb5 {[%emt 0:03:50]} Rc8 {[%emt 0:04:00]} 9. dxc5 {
[%emt 0:00:52]} Bxc5 {[%emt 0:00:38]} 10. b4 {[%emt 0:00:31]} Be7 {
[%emt 0:01:15]} 11. c4 {[%emt 0:07:20]} dxc4 {[%emt 0:02:30]} 12. Bxc4 {
[%emt 0:08:06]} Nd8 {[%emt 0:14:15]} 13. Nc7+ {[%emt 0:05:41]} Rxc7 {
[%emt 0:00:07]} 14. Bxc7 {[%emt 0:00:04]} Qxc7 {[%emt 0:00:06]} 15. Rc1 {
[%emt 0:01:21]} Nc6 {[%emt 0:02:33]} 16. O-O {[%emt 0:00:30]} Qb8 {
[%emt 0:00:23]} 17. Qe2 {[%emt 0:01:17]} O-O {[%emt 0:02:22]} 18. Rfd1 {
[%emt 0:08:56]} Rd8 {[%emt 0:01:05]} 19. Bb5 {[%emt 0:03:25]} h6 {
[%emt 0:03:13]} 20. Nd4 {[%emt 0:09:44]} Nxd4 {[%emt 0:06:18]} 21. Rxd4 {
[%emt 0:00:07]} Be8 {[%emt 0:07:44]} 22. Rxd8 {[%emt 0:03:15]} Qxd8 {
[%emt 0:00:29]} 23. g3 {[%emt 0:03:02]} a6 {[%emt 0:02:03]} 24. Bxe8 {
[%emt 0:00:33]} Nxe8 {[%emt 0:00:02]} 25. Rc3 {[%emt 0:08:22]} Nd6 {
[%emt 0:02:45]} 26. Qc2 {[%emt 0:01:04]} Bf8 {[%emt 0:00:45]} 27. Rc7 {
[%emt 0:03:31]} Qf6 {[%emt 0:02:20]} 28. Kg2 {[%emt 0:04:07]} Qe5 {
[%emt 0:00:38]} 29. Rc5 {[%emt 0:01:00]} Qf6 {[%emt 0:02:34]} 30. Rc7 {
[%emt 0:02:03]} g5 {[%emt 0:00:57]} 31. Qd1 {[%emt 0:05:57]} Kg7 {
[%emt 0:01:27]} 32. Rd7 {[%emt 0:01:33]} Qe5 {[%emt 0:01:16]} 33. Qf3 {
[%emt 0:01:07]} Qc3 {[%emt 0:01:30]} 34. h4 {[%emt 0:01:16]} Qc8 {
[%emt 0:00:55]} 35. Rxd6 {[%emt 0:00:22]} Bxd6 {[%emt 0:00:07]} 36. hxg5 {
[%emt 0:00:04]} hxg5 {[%emt 0:00:07]} 37. Qg4 {[%emt 0:00:10]} Qc6+ {
[%emt 0:00:28]} 38. Kh2 {[%emt 0:00:06]} Be7 {[%emt 0:00:18]} 0-1

[Event "Sunway Sitges op"]
[Site "Sitges ESP"]
[Date "2023.12.20"]
[Round "8.19"]
[White "Atanasov, Anthony"]
[Black "Petkov, Momchil"]
[Result "1/2-1/2"]
[ECO "B10"]
[WhiteElo "2381"]
[BlackElo "2496"]
[PlyCount "89"]
[EventDate "2023.12.12"]
[EventType "swiss"]
[EventRounds "10"]
[EventCountry "ESP"]
[Source "ChessMix"]
[SourceDate "2024.01.01"]
[TimeControl "90/40+30:0"]

1. e4 {[%emt 0:00:00]} c6 {[%emt 0:00:00]} 2. Nf3 {[%emt 0:00:00]} d5 {
[%emt 0:00:00]} 3. exd5 {[%emt 0:00:00]} cxd5 {[%emt 0:00:00]} 4. Ne5 {
[%emt 0:00:00]} Nc6 {[%emt 0:00:00]} 5. d4 {[%emt 0:01:15]} e6 {[%emt 0:05:26]}
6. Bb5 {[%emt 0:00:00]} Bd7 {[%emt 0:00:00]} 7. Nxd7 {[%emt 0:00:00]} Qxd7 {
[%emt 0:00:00]} 8. c3 {[%emt 0:00:32]} Bd6 {[%emt 0:00:54]} 9. Qg4 {
[%emt 0:03:50]} f5 {[%emt 0:00:00]} 10. Qh5+ {[%emt 0:02:18]} Qf7 {
[%emt 0:10:47]} 11. Qf3 {[%emt 0:00:00]} Nf6 {[%emt 0:00:00]} 12. Bf4 {
[%emt 0:00:00]} Qc7 {[%emt 0:03:17]} 13. Bxd6 {[%emt 0:00:00]} Qxd6 {
[%emt 0:02:29]} 14. Qg3 {[%emt 0:17:20]} Qxg3 {[%emt 0:00:00]} 15. hxg3 {
[%emt 0:01:29]} Ne4 {[%emt 0:00:00]} 16. Nd2 {[%emt 0:05:34]} Nd6 {
[%emt 0:03:58]} 17. a4 {[%emt 0:00:00]} Ke7 {[%emt 0:00:00]} 18. Bd3 {
[%emt 0:04:31]} Kf6 {[%emt 0:00:00]} 19. f3 {[%emt 0:00:00]} h5 {[%emt 0:03:22]
} 20. Kf2 {[%emt 0:00:00]} g5 {[%emt 0:08:30]} 21. Rh3 {[%emt 0:00:00]} Rh6 {
[%emt 0:00:00]} 22. Rah1 {[%emt 0:00:00]} Rah8 {[%emt 0:16:39]} 23. f4 {
[%emt 0:00:52]} g4 {[%emt 0:00:00]} 24. R3h2 {[%emt 0:00:00]} Ne7 {
[%emt 0:00:00]} 25. Ke3 {[%emt 0:02:53]} Kf7 {[%emt 0:00:00]} 26. Be2 {
[%emt 0:02:37]} Ne4 {[%emt 0:00:00]} 27. Nf1 {[%emt 0:00:00]} Nc8 {
[%emt 0:00:00]} 28. Rh4 {[%emt 0:00:00]} Ncd6 {[%emt 0:00:00]} 29. Bd3 {
[%emt 0:01:07]} Kg6 {[%emt 0:02:34]} 30. Bxe4 {[%emt 0:00:51]} Nxe4 {
[%emt 0:00:00]} 31. Nd2 {[%emt 0:00:00]} Nxg3 {[%emt 0:00:00]} 32. Ra1 {
[%emt 0:00:00]} Rc8 {[%emt 0:09:01]} 33. Rc1 {[%emt 0:00:00]} Rh7 {
[%emt 0:00:00]} 34. b3 {[%emt 0:01:08]} Rhc7 {[%emt 0:00:00]} 35. c4 {
[%emt 0:00:00]} dxc4 {[%emt 0:05:54]} 36. bxc4 {[%emt 0:00:00]} Rd8 {
[%emt 0:02:00]} 37. Re1 {[%emt 0:05:18]} Rc6 {[%emt 0:07:42]} 38. c5 {
[%emt 0:02:26]} Ra6 {[%emt 0:00:09]} 39. Ra1 {[%emt 0:00:00]} b6 {
[%emt 0:05:20]} 40. Nc4 {[%emt 0:01:12]} bxc5 {[%emt 0:00:00]} 41. dxc5 {
[%emt 0:07:41]} Rc8 {[%emt 0:00:00]} 42. Ne5+ {[%emt 0:00:00]} Kg7 {
[%emt 0:01:50]} 43. Rb1 {[%emt 0:06:09]} Rc7 {[%emt 0:00:00]} 44. Rb4 {
[%emt 0:06:19]} Rxc5 {[%emt 0:00:00]} 45. Rb7+ {[%emt 0:00:00]} 1/2-1/2

[Event "Sunway Sitges op"]
[Site "Sitges ESP"]
[Date "2023.12.22"]
[Round "10.36"]
[White "Atanasov, Anthony"]
[Black "Vignesh, B.."]
[Result "1-0"]
[ECO "D85"]
[WhiteElo "2381"]
[BlackElo "2179"]
[PlyCount "79"]
[EventDate "2023.12.12"]
[EventType "swiss"]
[EventRounds "10"]
[EventCountry "ESP"]
[Source "ChessMix"]
[SourceDate "2024.01.01"]
[TimeControl "90/40+30:0"]

1. d4 {[%emt 0:00:00]} Nf6 {[%emt 0:00:00]} 2. Nf3 {[%emt 0:00:00]} g6 {
[%emt 0:00:00]} 3. c4 {[%emt 0:00:00]} Bg7 {[%emt 0:00:00]} 4. Nc3 {
[%emt 0:00:00]} d5 {[%emt 0:00:00]} 5. cxd5 {[%emt 0:00:00]} Nxd5 {
[%emt 0:00:00]} 6. e4 {[%emt 0:00:00]} Nxc3 {[%emt 0:00:00]} 7. bxc3 {
[%emt 0:00:00]} c5 {[%emt 0:00:00]} 8. Be3 {[%emt 0:00:00]} Qa5 {[%emt 0:00:00]
} 9. Qd2 {[%emt 0:00:00]} Nc6 {[%emt 0:00:00]} 10. Rb1 {[%emt 0:00:00]} a6 {
[%emt 0:00:00]} 11. Rc1 {[%emt 0:00:00]} f5 {[%emt 0:00:00]} 12. e5 {
[%emt 0:00:00]} cxd4 {[%emt 0:00:00]} 13. cxd4 {[%emt 0:00:00]} Qxd2+ {
[%emt 0:00:00]} 14. Kxd2 {[%emt 0:00:00]} Be6 {[%emt 0:00:00]} 15. Ng5 {
[%emt 0:00:00]} Bd5 {[%emt 0:00:00]} 16. Bc4 {[%emt 0:00:00]} Rd8 {
[%emt 0:00:00]} 17. f4 {[%emt 0:00:00]} Bh6 {[%emt 0:04:36]} 18. Ne6 {
[%emt 0:00:00]} Bxe6 {[%emt 0:00:53]} 19. Bxe6 {[%emt 0:00:00]} Bxf4 {
[%emt 0:01:50]} 20. Rxc6 {[%emt 0:00:00]} Bxe3+ {[%emt 0:00:31]} 21. Kxe3 {
[%emt 0:00:00]} bxc6 {[%emt 0:00:01]} 22. Rc1 {[%emt 0:00:00]} Kf8 {
[%emt 0:00:49]} 23. Rxc6 {[%emt 0:00:00]} Kg7 {[%emt 0:00:01]} 24. Rc7 {
[%emt 0:00:00]} Rb8 {[%emt 0:02:41]} 25. Rxe7+ {[%emt 0:00:00]} Kh6 {
[%emt 0:00:03]} 26. d5 {[%emt 0:00:00]} Rb4 {[%emt 0:00:06]} 27. Kd3 {
[%emt 0:00:00]} Kg5 {[%emt 0:02:03]} 28. d6 {[%emt 0:00:00]} Rd8 {
[%emt 0:00:30]} 29. Bd5 {[%emt 0:00:00]} h5 {[%emt 0:00:33]} 30. d7 {
[%emt 0:00:00]} Rbb8 {[%emt 0:00:30]} 31. Kd4 {[%emt 0:00:00]} h4 {
[%emt 0:00:26]} 32. Kc5 {[%emt 0:00:00]} Kf4 {[%emt 0:00:11]} 33. Kd6 {
[%emt 0:00:00]} g5 {[%emt 0:00:09]} 34. e6 {[%emt 0:00:00]} g4 {[%emt 0:00:12]}
35. Rg7 {[%emt 0:00:00]} Rh8 {[%emt 0:00:27]} 36. e7 {[%emt 0:00:00]} Ke3 {
[%emt 0:00:22]} 37. Kc7 {[%emt 0:00:00]} Kd4 {[%emt 0:00:48]} 38. Bg8 {
[%emt 0:00:00]} Rbxg8 {[%emt 0:00:07]} 39. Rxg8 {[%emt 0:00:00]} Rxg8 {
[%emt 0:00:03]} 40. d8=Q+ {[%emt 0:00:00]} 1-0